{"text_format":"1","workbook":"xlsx","n_sheets":1,"sheets":["Table"],"not_rendered":{"charts":0,"images":1,"macros":1,"external_links":0,"defined_names":14,"comments":0,"pivot_tables":0},"unopened":[],"bounds":{"document_bytes":16777216,"sheet_cells":100000,"rows_first":2000,"rows_last":500,"rows_between":2000,"halvings":0,"cell_chars":16384,"cell_head_chars":4096},"cells_cut":0,"cells_raw":0,"read":"whole","date_system":"1900"}

{"sheet":"Table","index":0,"n_rows":59,"n_cols":42,"rows_kept":59,"cut":false,"hidden":false,"merged":[[5,41,15,44],[57,1,58,1],[23,1,24,1],[27,1,28,1],[53,1,54,1],[49,1,50,1],[51,1,52,1],[35,1,36,1],[37,1,38,1],[41,1,42,1],[29,1,30,1],[33,1,34,1],[14,21,15,21],[10,16,11,16],[10,19,11,19],[10,18,11,18],[14,17,15,17],[14,18,15,18],[10,17,11,17],[55,1,56,1],[56,4,56,5],[40,4,41,7],[23,4,24,4],[25,4,26,7],[42,4,43,4],[42,5,43,6],[42,7,43,7],[27,6,28,7],[27,4,27,5],[1,1,1,2],[2,1,2,2],[2,4,2,5],[1,4,1,6],[17,15,18,15],[6,16,7,16],[6,17,7,17],[6,18,7,18],[13,1,14,1],[13,4,14,4],[11,1,12,1],[11,4,12,4],[15,1,16,1],[15,4,16,4],[7,5,8,6],[3,1,3,7],[4,1,4,2],[9,1,10,1],[9,4,10,4],[5,1,5,2],[7,7,8,7],[6,1,6,2],[7,1,8,1],[7,2,8,2],[7,3,8,3],[7,4,8,4],[19,30,20,30],[21,31,22,31],[17,1,18,1],[17,4,18,4],[47,1,48,1],[39,1,40,1],[43,1,44,1],[45,1,46,1],[19,1,20,1],[25,1,26,1],[31,1,32,1],[19,4,20,4],[21,4,22,4],[21,1,22,1],[6,19,7,19],[6,20,7,20],[6,21,7,21],[10,20,11,20],[10,21,11,21],[14,16,15,16],[14,19,15,19],[14,20,15,20],[6,37,7,37],[6,38,7,38],[8,31,9,31],[8,32,9,32],[8,33,9,33],[8,34,9,34],[8,35,9,35],[8,36,9,36],[8,37,9,37],[8,38,9,38],[6,32,7,32],[6,33,7,33],[6,34,7,34],[6,35,7,35],[6,36,7,36],[6,31,7,31],[21,37,22,37],[21,38,22,38],[24,30,25,30],[21,32,22,32],[21,33,22,33],[21,34,22,34],[21,35,22,35],[21,36,22,36],[12,37,13,37],[12,38,13,38],[14,31,15,31],[14,32,15,32],[14,33,15,33],[14,34,15,34],[14,35,15,35],[14,36,15,36],[14,37,15,37],[14,38,15,38],[12,32,13,32],[12,33,13,33],[12,34,13,34],[12,35,13,35],[12,36,13,36],[12,31,13,31]]}
[null,null,null,null,null,null,null,null,null,null,"ساعة ونصف",null,"١٠.٣٠   -----  ٩.٠٠","من"]
[null," محافطة- ادارة شرق",null,{"$f":"IFERROR(IF(VLOOKUP(J2,youm,5,0)=\"\",\"\",VLOOKUP(J2,youm,5,0)),\"\")","v":"اليوم الأول -الفترة الأولى"},{"$f":"IFERROR(IF(VLOOKUP(J2,youm,6,0)=\"\",\"\",VLOOKUP(J2,youm,6,0)),\"\")","v":"2025-06-15"},null,null,"الفترة1",null,1,"ساعتان",null,"١١.٠٠   -----  ٩.٠٠",null,null,"اليوم والتاريخ","المادة","الشعبة","الوقت",null,"زمن الإجابة","الأيام والفترات",null,"م","العلوم","الرياضيات","الأدبية",null,null,null,"اليوم والتاريخ","الوقت",null,"زمن الإجابة","المادة","الشعبة","الوقت",null,"زمن الإجابة","الأيام والفترات"]
[null," لجنة ",null,"(النظام الجديد)","لجنة رقم  ",null,1762,{"$f":" CHOOSE(WEEKDAY(E2),\"الاحد\", \"الاثنين\", \"الثلاثاء\", \"الاربعاء\", \"الخميس\",\"الجمعة\", \"السبت\")","v":"الاحد"},null,"2","ثلاث ساعات",null,"١٢.٠٠   -----  ٩.٠٠","٩.٠٠",null,"الاحد","التربية الدينية","العامة","٩.٠٠","١٠.٣٠","ساعة ونصف","اليوم الأول -الفترة الأولى",null,1,"التربية الدينية","التربية الدينية","التربية الدينية","اليوم الأول -الفترة الأولى","2025-06-15",null,{"$f":" CHOOSE(WEEKDAY(AE4),\"الاحد\", \"الاثنين\", \"الثلاثاء\", \"الاربعاء\", \"الخميس\",\"الجمعة\", \"السبت\")","v":"الاحد"},9,10.3,"ساعة ونصف","التربية الدينية","العامة",{"$f":"AF3","v":9},10.3,"ساعة ونصف","اليوم الأول -الفترة الأولى"]
[null," كشــــــــــف الملاحــــظة امتـــــحانات إتمـــام الشـــــــــهادة الثانــوية العــامــة  ٢٠٢٤/ ٢٠٢٥",null,null,null,null,null,null,null,null,null,null,null,"١٢",null,"٢٠٢٥/٠٦/١٥","التربية الوطنية","العامة",11,"١٢.٣٠","ساعة ونصف","اليوم الأول -الفترة الثانية",null,2,"التربية الوطنية","التربية الوطنية","التربية الوطنية","اليوم الأول -الفترة الثانية","2025-06-15",null,"2025-06-15",11,12.3,"ساعة ونصف","التربية الوطنية","العامة",{"$f":"AF4","v":11},12.3,"ساعة ونصف","اليوم الأول -الفترة الثانية"]
[null,{"$f":" IF($J$2 =\"\",\"\",VLOOKUP($J$2,moad,2,0))","v":"التربية الدينية"},null,"من",{"$f":"IFERROR(IF(VLOOKUP(B5,zamn,3,0)=\"\",\"\",VLOOKUP(B5,zamn,3,0)),\"\")","v":9},{"$f":"IFERROR(IF(VLOOKUP(B5,zamn,4,0)=\"\",\"\",VLOOKUP(B5,zamn,4,0)),\"\")","v":10.3},{"$f":"IFERROR(IF(VLOOKUP(B5,zamn,5,0)=\"\",\"\",VLOOKUP(B5,zamn,5,0)),\"\")","v":"ساعة ونصف"},"علوم",null,null,null,null,null,null,null,"الثلاثاء","اللغة الأجنبية الثانية","العامة","٩.٠٠","١١.٠٠","ساعتان","اليوم الثاني",null,3,"الاقتصاد","الاقتصاد","الاقتصاد","اليوم الثاني -الفترة الأولى","2025-06-17",null,{"$f":" CHOOSE(WEEKDAY(AE6),\"الاحد\", \"الاثنين\", \"الثلاثاء\", \"الاربعاء\", \"الخميس\",\"الجمعة\", \"السبت\")","v":"الثلاثاء"},9,10.3,"ساعة ونصف","الاقتصاد","العامة",9,10.3,"ساعة ونصف","اليوم الثاني -الفترة الأولى"]
[null,{"$f":" IF($J$2 =\"\",\"\",VLOOKUP($J$2,moad,3,0))","v":"التربية الدينية"},null,"من",{"$f":"IFERROR(IF(VLOOKUP(B6,zamn,3,0)=\"\",\"\",VLOOKUP(B6,zamn,3,0)),\"\")","v":9},{"$f":"IFERROR(IF(VLOOKUP(B6,zamn,4,0)=\"\",\"\",VLOOKUP(B6,zamn,4,0)),\"\")","v":10.3},{"$f":"IFERROR(IF(VLOOKUP(B6,zamn,5,0)=\"\",\"\",VLOOKUP(B6,zamn,5,0)),\"\")","v":"ساعة ونصف"}," رياضيات",null,null,null,null,null,null,null,"٢٠٢٥/٠٦/١٧",null,null,null,null,null,null,null,4,"الإحصاء","الإحصاء","الإحصاء","اليوم الثاني -الفترة الثانية","2025-06-17",null,"2025-06-17",11,12.3,"ساعة ونصف","الإحصاء","العامة",{"$f":"AF6","v":11},12.3,"ساعة ونصف","اليوم الثاني -الفترة الثانية",null," المطلوب \nتعديل كود الطباعة بحيث\n يتم تجميع الملفات في ملف واحد داخل الفولدر"]
[null,{"$f":" IF($J$2 =\"\",\"\",VLOOKUP($J$2,moad,4,0))","v":"التربية الدينية"},null,"من",{"$f":"IFERROR(IF(VLOOKUP(B7,zamn,3,0)=\"\",\"\",VLOOKUP(B7,zamn,3,0)),\"\")","v":9},{"$f":"IFERROR(IF(VLOOKUP(B7,zamn,4,0)=\"\",\"\",VLOOKUP(B7,zamn,4,0)),\"\")","v":10.3},{"$f":"IFERROR(IF(VLOOKUP(B7,zamn,5,0)=\"\",\"\",VLOOKUP(B7,zamn,5,0)),\"\")","v":"ساعة ونصف"},"الأدبية",null,null,null,null,null,null,null,"الاحد","اللغة العربية","العامة","٩.٠٠","١٢.٠٠","ثلاث ساعات","اليوم الثالث",null,5,"اللغة العربية","اللغة العربية","اللغة العربية","اليوم الثالث","2025-06-22",null,{"$f":" CHOOSE(WEEKDAY(AE8),\"الاحد\", \"الاثنين\", \"الثلاثاء\", \"الاربعاء\", \"الخميس\",\"الجمعة\", \"السبت\")","v":"الاحد"},9,12,"ثلاث ساعات","اللغة العربية","العامة",9,12,"ثلاث ساعات","اليوم الثالث"]
[null,"اللجنة","اسم الملاحظ","التوقيع","اللجنة","اسم الملاحظ",null,"التوقبع",null,null,null,null,null,null,null,"٢٠٢٥/٠٦/٢٢",null,null,null,null,null,null,null,6,"اللغة الأجنبية الثانية","اللغة الأجنبية الثانية","اللغة الأجنبية الثانية","اليوم الرابع","2025-06-24",null,"2025-06-22"]
[null,null,null,null,null,null,null,null,null,null,null,null,null,null,null,"الخميس","الفيزياء","العلو م والرياضبات","٩.٠٠","١٢.٠٠","ثلاث ساعات","اليوم الرابع",null,7,"الفيزياء","الفيزياء","التاريخ","اليوم الخامس","2025-06-26",null,{"$f":" CHOOSE(WEEKDAY(AE10),\"الاحد\", \"الاثنين\", \"الثلاثاء\", \"الاربعاء\", \"الخميس\",\"الجمعة\", \"السبت\")","v":"الثلاثاء"},9,11,"ساعتان","اللغة الأجنبية الثانية","العامة",{"$f":"AF9","v":9},{"$f":"AG9","v":11},{"$f":"AH9","v":"ساعتان"},"اليوم الرابع"]
[null,1,"m1",null,26,"m51",null,null,null,null,"٢٠٢٥/٠٦/١٥","اليوم الاول","التربية الدينية","السبت","علوم","٢٠٢٥/٠٦/٢٦","التاريخ","الأدبية","٩.٠٠","١٢.٠٠","ثلاث ساعات",null,null,8,"اللغة الأجنبية الاولي","اللغة الأجنبية الاولي","اللغة الأجنبية الاولي","اليوم السادس","2025-06-29",null,"2025-06-24"]
[null,null,"m2",null,null,"m52",null,null,null,null,"٢٠٢٥/٠٦/١٧","اليوم الاول","التربية الوطنية","الاحد"," رياضيات","الاحد","اللغة الأجنبية الاولي","العامة","٩.٠٠","١٢.٠٠","ثلاث ساعات","اليوم الخامس",null,9,null,"الرياضيات البحتة (تفاضل وتكامل)",null,"اليوم السابع","2025-07-01",null,{"$f":" CHOOSE(WEEKDAY(AE12),\"الاحد\", \"الاثنين\", \"الثلاثاء\", \"الاربعاء\", \"الخميس\",\"الجمعة\", \"السبت\")","v":"الخميس"},9,12,"ثلاث ساعات","الفيزياء","العلو م والرياضبات",{"$f":"AF11","v":9},12,"ثلاث ساعات","اليوم الخامس"]
[null,2,"m3",null,27,"m53",null,null,null,null,"٢٠٢٥/٠٦/٢٢","اليوم الثاني","اللغة الأجنبية الثانية","الاثنين","الأدبية","٢٠٢٥/٠٦/٢٩",null,null,null,null,null,null,null,10,"الكيمياء","الكيمياء","الجغرافيا","اليوم الثامن","2025-07-03",null,"2025-06-26",9,12,"ثلاث ساعات","التاريخ","الأدبية",9,12,"ثلاث ساعات"]
[null,null,"m4",null,null,"m54",null,null,null,null,"٢٠٢٥/٠٦/٢٦","اليوم الثالث","اللغة العربية","الثلاثاء",null,"الخميس","الكيمياء","العلوم والرياضيات","٩.٠٠","١٢.٠٠","ثلاث ساعات","اليوم السادس",null,11,"الجيولوجيا والعلوم البيئية","الرياضيات البحتة (جبر وهندسة فراغية )","علم النفس والاجتماع","اليوم التاسع","2025-07-06",null,{"$f":" CHOOSE(WEEKDAY(AE14),\"الاحد\", \"الاثنين\", \"الثلاثاء\", \"الاربعاء\", \"الخميس\",\"الجمعة\", \"السبت\")","v":"الاحد"},9,11,"ثلاث ساعات","اللغة الأجنبية الاولي","العامة",9,11,"ثلاث ساعات","اليوم السادس"]
[null,3,"m5",null,28,"m55",null,null,null,null,"٢٠٢٥/٠٦/٢٩","اليوم الرابع","الفيزياء","الاربعاء",null,"٢٠٢٥/٠٧/٠٣","الجغرافيا","الأدبية","٩.٠٠","١٢.٠٠","ثلاث ساعات",null,null,12,null,"الرياضيات التطبيقية (الديناميكا)",null,"اليوم العاشر","2025-07-08",null,"2025-06-29"]
[null,null,"m6",null,null,"m56",null,null,null,null,"٢٠٢٥/٠٧/٠٣","اليوم الخامس","التاريخ","الخميس",null,"الاحد","الرياضيات (البحتة) ","الرياضيات","٩.٠٠","١١.٠٠","ساعتان","اليوم السابع",null,13,"الاحياء","الرياضيات التطبيقية (الاستاتيكا)","الفلسقة والمنطق","اليوم الحادي عشر","2025-07-10",null,{"$f":" CHOOSE(WEEKDAY(AE16),\"الاحد\", \"الاثنين\", \"الثلاثاء\", \"الاربعاء\", \"الخميس\",\"الجمعة\", \"السبت\")","v":"الثلاثاء"},9,12,"ساعتان","الرياضيات البحتة (تفاضل وتكامل)","الرياضيات",{"$f":"AF15","v":9},{"$f":"AG15","v":12},{"$f":"AH15","v":"ساعتان"},"اليوم السابع"]
[null,4,"m7",null,29,"m57",null,null,null,null,"٢٠٢٥/٠٧/٠٦","اليوم السادس","اللغة الأجنبية الاولي",null,null,"٢٠٢٥/٠٧/٠٦",null,null,null,null,null,null,null,null,null,null,null,null,null,null,"2025-07-01"]
[null,null,"m8",null,null,"m58",null,null,null,null,"٢٠٢٥/٠٧/١٠","اليوم السابع","الكيمياء",null,null,"الخميس","الاحياء","العلوم","٩.٠٠","١٢.٠٠","ثلاث ساعات","اليوم الثامن",null,null,null,null,null,null,null,null,{"$f":" CHOOSE(WEEKDAY(AE18),\"الاحد\", \"الاثنين\", \"الثلاثاء\", \"الاربعاء\", \"الخميس\",\"الجمعة\", \"السبت\")","v":"الخميس"},9,12,"ثلاث ساعات","الكيمياء","العلوم والرياضيات",{"$f":"AF17","v":9},12,"ثلاث ساعات","اليوم الثامن"]
[null,5,"m9",null,30,"m59",null,null,null,null,null,"اليوم الثامن","الجغرافيا",null,null,"٢٠٢٥/٠٧/١٠","الرياضيات (التطبيقية) ","الرياضيات","٩.٠٠","١١.٠٠","ساعتان",null,null,null,null,null,null,null,null,null,"2025-07-03",9,12,"ثلاث ساعات","الجغرافيا","الأدبية",9,12,"ثلاث ساعات"]
[null,null,"m10",null,null,"m60",null,null,null,null,null,null,"الرياضيات (البحتة) ",null,null,null,"الاحصاء","الأدبية","٩.٠٠","١٢.٠٠","ثلاث ساعات",null,null,null,null,null,null,null,null,null,{"$f":" CHOOSE(WEEKDAY(AE20),\"الاحد\", \"الاثنين\", \"الثلاثاء\", \"الاربعاء\", \"الخميس\",\"الجمعة\", \"السبت\")","v":"الاحد"},9,12,"ثلاث ساعات","الجيولوجيا والعلوم البيئية","العلوم",9,12,"ثلاث ساعات","اليوم التاسع"]
[null,6,"m11",null,31,"m61",null,null,null,null,null,null,"الاحصاء",null,null,null,null,null,null,null,null,null,null,null,null,null,null,null,null,null,"2025-07-06",9,11,"ساعتان","الرياضيات البحتة (جبر وهندسة فراغية )","الرياضيات",9,11,"ساعتان"]
[null,null,"m12",null,null,"m62",null,null,null,null,null,null,null,null,null,null,null,null,null,null,null,null,null,null,null,null,null,null,null,null,null,9,12,"ثلاث ساعات","علم النفس والاجتماع","الأدبية",9,12,"ثلاث ساعات"]
[null,7,"m13",null,32,"m63",null,null,null,null,null,null,null,null,null,null,null,null,null,null,null,null,null,null,null,null,null,null,null,null,{"$f":" CHOOSE(WEEKDAY(AE23),\"الاحد\", \"الاثنين\", \"الثلاثاء\", \"الاربعاء\", \"الخميس\",\"الجمعة\", \"السبت\")","v":"الثلاثاء"},9,11,"ساعتان","الرياضيات التطبيقية (الديناميكا)","الرياضيات",9,11,"ساعتان","اليوم العاشر"]
[null,null,"m14",null,null,"m64",null,null,null,null,null,null,null,null,null,null,null,null,null,null,null,null,null,null,null,null,null,null,null,null,"2025-07-08"]
[null,8,"m15",null,33,"m65",null,null,null,null,null,null,null,null,null,null,null,null,null,null,null,null,null,null,null,null,null,null,null,null,{"$f":" CHOOSE(WEEKDAY(AE25),\"الاحد\", \"الاثنين\", \"الثلاثاء\", \"الاربعاء\", \"الخميس\",\"الجمعة\", \"السبت\")","v":"الخميس"},9,12,"ثلاث ساعات","الاحياء","العلوم",{"$f":"AF24","v":9},12,"ثلاث ساعات","اليوم الحادي عشر"]
[null,null,"m16",null,null,"m66",null,null,null,null,"المادة","عربي","فيزياء","انجليزي","الكيمياء","الرياضيات (البحتة) ","الاحياء",null,null,null,null,null,null,null,null,null,null,null,null,null,"2025-07-10",9,11,"ساعتان","الرياضيات التطبيقية (الاستاتيكا)","الرياضيات",9,11,"ساعتان"]
[null,9,"m17",null,"المراقبون",null,null,null,null,null,"رقيه السيد عباس ابوطالب","٢٤١٨","١٤١٢","٣١","٣١٢٥","١٧١٥","٧٤",null,null,null,null,null,null,null,null,null,null,null,null,null,null,9,12,"ثلاث ساعات","الفلسقة والمنطق","الأدبية",9,12,"ثلاث ساعات"]
[null,null,"m18",null,null,null,null,null,null,null,"رجب سليم شعبان الفيومي","٣١","١١٨","١٧١٥","٧٤","٢٤١٨","١٤١٢"]
[null,10,"m19",null,"اللجان",null,"اسم المراقب",null,null,null,"نصرعبد المقصود الحسيني ","١٤١٢","٧٤","١١٨","١٧١٥","٣١٢٥","٣١"]
[null,null,"m20",null,"من","إلى",null,null,null,null,"عبد الله ابو عبيدة عمر عز الدين","٣١٢٥","٣١","٢٤١٨","٣١","١٤١٢","١١٨"]
[null,11,"m21",null,"١","٣","مراقب١",null,null,null,"محمد عبدالقادر محمد النذهي","٧٤","٢٤١٨","٣١٢٥","١٤١٢","١١٨","١٧١٥"]
[null,null,"m22",null,"٤","٧","مراقب٢",null,null,null,"عمر خلف احمد محمد","١٧١٥","٣١٢٥","٧٤","١١٨","٣١","٢٤١٨"]
[null,12,"m23",null,"٨","١١","مراقب٣",null,null,null,"علاء احمد يوسف بيومي","١١٨","١٧١٥","١٤١٢","٢٤١٨","٧٤","٣١٢٥"]
[null,null,"m24",null,"١٢","١٤","مراقب٤",null,null,null,null,null,null,"١","٣"]
[null,13,"m25",null,"١٥","١٧","مراقب٥",null,null,null,null,null,null,"٤","٧"]
[null,null,"m26",null,"١٨","٢٤","مراقب٦",null,null,null,null,null,null,"٨","١١"]
[null,14,"m27",null,"٢٥","٢٩","مراقب٧",null,null,null,null,null,null,"١٢","١٤"]
[null,null,"m28",null,"٣٠","٣١","مراقب٨",null,null,null,null,null,null,"١٥","١٧"]
[null,15,"m29",null,null,null,"مراقب٩",null,null,null,null,null,null,"١٨","٢٤"]
[null,null,"m30",null,null,null,"مراقب١٠",null,null,null,null,null,null,"٢٥","٢٩"]
[null,16,"m31",null,null,null,null,null,null,null,null,null,null,"٣٠","٣١"]
[null,null,"m32",null,"الاحتياطيون"]
[null,17,"m33"]
[null,null,"m34",null,"م","اسم الاحتياطي",null,"التوقيع"]
[null,18,"m35"]
[null,null,"m36",null,1,"m67"]
[null,19,"m37",null,2,"m68"]
[null,null,"m38",null,3,"m69"]
[null,20,"m39",null,4,"m70"]
[null,null,"m40",null,5,"m71"]
[null,21,"m41",null,6,"m72"]
[null,null,"m42",null,7,"m73"]
[null,22,"m43",null,8,"m74"]
[null,null,"m44",null,9,"m75"]
[null,23,"m45",null,10,"m76"]
[null,null,"m46",null,11,"m77"]
[null,24,"m47"]
[null,null,"m48",null,"مراقب الكنترول",null,"المراقب الأول","رئيس اللجنة"]
[null,25,"m49"]
[null,null,"m50"]